[Event "Wch u20 girls"]
[Site "Kocaeli"]
[Date "2013.09.22"]
[Round "9.27"]
[White "Assaubayeva, Bibissara"]
[Black "Anjana Krishna, S."]
[Result "1-0"]
[ECO "B01"]
[WhiteElo "1761"]
[BlackElo "1881"]
[PlyCount "111"]
[EventDate "2013.09.??"]
[EventType "swiss"]
[EventRounds "13"]
[EventCountry "TUR"]
[Source "CBase R.Goldau"]
[SourceDate "2000.03.01"]
[TimeControl "40/5400+30:1800+30"]

1. e4 d5 2. exd5 Qxd5 3. Nc3 Qd6 {[%emt 0:00:00]} 4. d4 {[%emt 0:05:00]} c6 {
[%emt 0:00:00]} 5. Nf3 {[%emt 0:00:30]} Nf6 {[%emt 0:00:30]} 6. Be2 {[%emt 0:
01:30]} Bf5 {[%emt 0:02:30]} 7. O-O {[%emt 0:05:30]} Nbd7 {[%emt 0:00:30]} 8.
Re1 {[%emt 0:07:30]} e6 {[%emt 0:00:30]} 9. a4 {[%emt 0:07:30]} a5 {[%emt 0:01:
30]} 10. Bg5 {[%emt 0:03:30]} Qc7 {[%emt 0:00:30]} 11. h3 {[%emt 0:19:30]} h6 {
[%emt 0:00:30]} 12. Bxf6 {[%emt 0:00:30]} Nxf6 {[%emt 0:02:30]} 13. Ne5 {[%emt
0:05:30]} Bd6 {[%emt 0:00:30]} 14. Bd3 {[%emt 0:03:30]} Bxd3 {[%emt 0:00:30]}
15. Qxd3 {[%emt 0:00:00]} O-O {[%emt 0:00:30]} 16. Qe2 {[%emt 0:04:00]} Rad8 {
[%emt 0:02:30]} 17. Rad1 {[%emt 0:01:30]} Bb4 {[%emt 0:02:30]} 18. Rd3 {[%emt
0:07:30]} Bxc3 {[%emt 0:12:30]} 19. bxc3 {[%emt 0:01:30]} Qe7 {[%emt 0:03:30]}
20. Rb1 {[%emt 0:04:30]} Rb8 {[%emt 0:01:30]} 21. Nc4 {[%emt 0:01:30]} Qd8 {
[%emt 0:10:30]} 22. Qe5 {[%emt 0:03:00]} b6 {[%emt 0:00:30]} 23. Rg3 {[%emt 0:
01:13]} Kh8 {[%emt 0:00:30]} 24. Nd6 {[%emt 0:05:57]} Qd7 {[%emt 0:06:30]} 25.
Ne4 {[%emt 0:02:04]} Qe7 {[%emt 0:02:30]} 26. c4 {[%emt 0:03:37]} Rg8 {[%emt 0:
02:30]} 27. Nxf6 {[%emt 0:01:48]} Qxf6 {[%emt 0:00:30]} 28. Qxf6 {[%emt 0:00:
06]} gxf6 {[%emt 0:00:30]} 29. Rgb3 {[%emt 0:00:10]} Rbd8 {[%emt 0:04:30]} 30.
Rxb6 {[%emt 0:01:47]} Rxd4 {[%emt 0:00:30]} 31. Rxc6 {[%emt 0:00:10]} Rd2 {
[%emt 0:00:30]} 32. Rc1 {[%emt 0:01:24]} Rg5 {[%emt 0:00:30]} 33. c5 {[%emt 0:
01:50]} Rf5 {[%emt 0:01:30]} 34. f3 {[%emt 0:00:16]} Kg7 {[%emt 0:13:30]} 35.
Rd6 {[%emt 0:00:40]} Re2 {[%emt 0:05:30]} 36. Kf1 {[%emt 0:00:47]} Re3 {[%emt
0:01:30]} 37. Rd3 {[%emt 0:00:32]} Ree5 {[%emt 0:00:30]} 38. Rc3 {[%emt 0:00:
02]} Rxc5 {[%emt 0:00:30]} 39. Rxc5 {[%emt 0:00:07]} Rxc5 {[%emt 0:00:30]} 40.
c4 {[%emt 0:00:00]} Kf8 {[%emt 0:00:00]} 41. Ke2 {[%emt 0:02:30]} Ke7 {[%emt 0:
08:00]} 42. Kd3 {[%emt 0:00:30]} Rg5 {[%emt 0:00:30]} 43. Rc2 {[%emt 0:00:30]}
Kd6 {[%emt 0:00:30]} 44. Rb2 {[%emt 0:00:00]} Kc6 {[%emt 0:01:30]} 45. g4 {
[%emt 0:04:00]} Rg8 {[%emt 0:00:30]} 46. Rb5 {[%emt 0:01:30]} Rg5 {[%emt 0:02:
30]} 47. Kd4 {[%emt 0:07:30]} e5+ {[%emt 0:03:30]} 48. Ke4 {[%emt 0:00:30]} f5+
{[%emt 0:03:30]} 49. gxf5 {[%emt 0:01:30]} f6 {[%emt 0:00:30]} 50. Rxa5 {[%emt
0:00:30]} Rh5 {[%emt 0:01:30]} 51. Ra6+ {[%emt 0:00:30]} Kc5 {[%emt 0:00:30]}
52. Rxf6 {[%emt 0:00:30]} Rxh3 {[%emt 0:00:30]} 53. Kxe5 {[%emt 0:00:30]} Rh1 {
[%emt 0:00:30]} 54. Rg6 {[%emt 0:00:30]} h5 {[%emt 0:00:00]} 55. f6 {[%emt 0:
00:30]} Rf1 {[%emt 0:00:00]} 56. f4 {[%emt 0:00:00]} 1-0

[Event "Wch u20 girls"]
[Site "Kocaeli"]
[Date "2013.09.22"]
[Round "9.28"]
[White "Arig, Busra"]
[Black "Firat, Deniz"]
[Result "1/2-1/2"]
[ECO "C42"]
[WhiteElo "1788"]
[BlackElo "1664"]
[PlyCount "66"]
[EventDate "2013.09.??"]
[EventType "swiss"]
[EventRounds "13"]
[EventCountry "TUR"]
[Source "CBase R.Goldau"]
[SourceDate "2000.03.01"]
[TimeControl "40/5400+30:1800+30"]

1. e4 e5 2. Nf3 Nf6 3. Nxe5 d6 {[%emt 0:01:30]} 4. Nf3 {[%emt 0:03:00]} Nxe4 {
[%emt 0:00:30]} 5. Qe2 {[%emt 0:00:30]} Qe7 {[%emt 0:00:30]} 6. d3 {[%emt 0:01:
30]} Nf6 {[%emt 0:01:30]} 7. Bg5 {[%emt 0:03:30]} Qxe2+ {[%emt 0:00:30]} 8.
Bxe2 {[%emt 0:00:30]} Be7 {[%emt 0:00:30]} 9. Nc3 {[%emt 0:00:30]} c6 {[%emt 0:
01:30]} 10. O-O-O {[%emt 0:02:30]} Na6 {[%emt 0:03:30]} 11. Ne4 {[%emt 0:04:30]
} Nxe4 {[%emt 0:02:30]} 12. dxe4 {[%emt 0:00:30]} Nc5 {[%emt 0:00:30]} 13. Bxe7
{[%emt 0:06:30]} Kxe7 {[%emt 0:00:30]} 14. e5 {[%emt 0:04:30]} dxe5 {[%emt 0:
08:30]} 15. Nxe5 {[%emt 0:04:30]} Be6 {[%emt 0:04:30]} 16. Bc4 {[%emt 0:06:30]}
Rhd8 {[%emt 0:02:30]} 17. Bxe6 {[%emt 0:04:30]} Rxd1+ {[%emt 0:01:30]} 18. Rxd1
{[%emt 0:01:30]} Nxe6 {[%emt 0:00:30]} 19. g3 {[%emt 0:05:30]} Rd8 {[%emt 0:00:
00]} 20. Rxd8 {[%emt 0:00:30]} Nxd8 {[%emt 0:00:00]} 21. Kd2 {[%emt 0:00:30]}
f6 {[%emt 0:00:30]} 22. Nc4 {[%emt 0:01:30]} b6 {[%emt 0:00:30]} 23. Kd3 {
[%emt 0:02:30]} Nb7 {[%emt 0:00:30]} 24. a3 {[%emt 0:02:30]} Nd6 {[%emt 0:02:
30]} 25. Ne3 {[%emt 0:01:30]} Ke6 {[%emt 0:00:30]} 26. f3 {[%emt 0:01:30]} g6 {
[%emt 0:00:30]} 27. b3 {[%emt 0:00:30]} h5 {[%emt 0:01:30]} 28. c4 {[%emt 0:07:
30]} Nf5 {[%emt 0:02:30]} 29. Nc2 {[%emt 0:01:30]} c5 {[%emt 0:03:30]} 30. Ke4
{[%emt 0:02:30]} Nd6+ {[%emt 0:00:30]} 31. Kd3 {[%emt 0:01:30]} Nf5 {[%emt 0:
00:30]} 32. Ke4 {[%emt 0:00:00]} Nd6+ {[%emt 0:00:00]} 33. Kd3 {[%emt 0:00:00]}
Nf5 {[%emt 0:00:00]} 1/2-1/2

[Event "Wch u20 girls"]
[Site "Kocaeli"]
[Date "2013.09.22"]
[Round "9.30"]
[White "Urbonaviciute, Zivile"]
[Black "Racki, Barbara"]
[Result "1-0"]
[ECO "C45"]
[WhiteElo "1826"]
[BlackElo "1946"]
[PlyCount "67"]
[EventDate "2013.09.??"]
[EventType "swiss"]
[EventRounds "13"]
[EventCountry "TUR"]
[Source "CBase R.Goldau"]
[SourceDate "2000.03.01"]
[TimeControl "40/5400+30:1800+30"]

1. e4 e5 2. Nf3 Nc6 3. d4 exd4 4. Nxd4 Bc5 5. Nb3 Bb6 {[%emt 0:02:30]} 6. Nc3 {
[%emt 0:01:00]} Qf6 {[%emt 0:00:30]} 7. Qe2 {[%emt 0:00:30]} Nge7 {[%emt 0:00:
30]} 8. Be3 {[%emt 0:00:30]} O-O {[%emt 0:06:30]} 9. O-O-O {[%emt 0:06:30]} d6
{[%emt 0:00:30]} 10. Kb1 {[%emt 0:00:30]} Ne5 {[%emt 0:15:30]} 11. f4 {[%emt 0:
26:30]} Nc4 {[%emt 0:23:30]} 12. Bd4 {[%emt 0:01:30]} Bxd4 {[%emt 0:00:30]} 13.
Nxd4 {[%emt 0:00:30]} Nb6 {[%emt 0:00:00]} 14. f5 {[%emt 0:02:30]} Bd7 {[%emt
0:02:00]} 15. h4 {[%emt 0:03:30]} Nc6 {[%emt 0:03:30]} 16. Qf2 {[%emt 0:12:30]}
Rfe8 {[%emt 0:06:30]} 17. g4 {[%emt 0:01:30]} Nxd4 {[%emt 0:01:30]} 18. Rxd4 {
[%emt 0:00:30]} Bc6 {[%emt 0:05:30]} 19. g5 {[%emt 0:04:30]} Qe5 {[%emt 0:00:
00]} 20. f6 {[%emt 0:12:30]} d5 {[%emt 0:02:00]} 21. Bd3 {[%emt 0:02:30]} dxe4
{[%emt 0:06:30]} 22. Bxe4 {[%emt 0:03:30]} Bxe4 {[%emt 0:02:30]} 23. Rxe4 {
[%emt 0:01:08]} Qd6 {[%emt 0:00:30]} 24. Rf1 {[%emt 0:06:14]} g6 {[%emt 0:03:
09]} 25. h5 {[%emt 0:00:19]} Re5 {[%emt 0:02:40]} 26. hxg6 {[%emt 0:02:05]}
fxg6 {[%emt 0:04:54]} 27. f7+ {[%emt 0:01:06]} Kf8 {[%emt 0:01:13]} 28. Qh4 {
[%emt 0:00:28]} Rf5 {[%emt 0:01:33]} 29. Qh6+ {[%emt 0:00:43]} Kxf7 {[%emt 0:
00:25]} 30. Qxh7+ {[%emt 0:00:05]} Kf8 {[%emt 0:00:16]} 31. Rxf5+ {[%emt 0:01:
46]} gxf5 {[%emt 0:00:07]} 32. Qxf5+ {[%emt 0:00:08]} Kg8 {[%emt 0:01:18]} 33.
Re6 {[%emt 0:00:59]} Qd4 {[%emt 0:01:34]} 34. Rg6+ {[%emt 0:00:16]} 1-0

[Event "Wch u20 girls"]
[Site "Kocaeli"]
[Date "2013.09.23"]
[Round "10.1"]
[White "Goryachkina, Aleksandra"]
[Black "Bulmaga, Irina"]
[Result "1/2-1/2"]
[ECO "A64"]
[WhiteElo "2418"]
[BlackElo "2387"]
[PlyCount "120"]
[EventDate "2013.09.??"]
[EventType "swiss"]
[EventRounds "13"]
[EventCountry "TUR"]
[Source "CBase R.Goldau"]
[SourceDate "2000.03.01"]
[TimeControl "40/5400+30:1800+30"]

1. d4 {[%emt 0:00:30]} Nf6 {[%emt 0:00:30]} 2. c4 {[%emt 0:00:00]} e6 {[%emt 0:
00:00]} 3. Nf3 {[%emt 0:00:00]} c5 {[%emt 0:00:00]} 4. d5 {[%emt 0:00:30]} exd5
{[%emt 0:00:00]} 5. cxd5 {[%emt 0:00:30]} d6 {[%emt 0:00:00]} 6. Nc3 {[%emt 0:
00:30]} g6 {[%emt 0:00:30]} 7. g3 {[%emt 0:05:30]} Bg7 {[%emt 0:00:00]} 8. Bg2
{[%emt 0:00:30]} O-O {[%emt 0:00:00]} 9. O-O {[%emt 0:00:30]} Re8 {[%emt 0:00:
30]} 10. Nd2 {[%emt 0:00:30]} Nbd7 {[%emt 0:00:00]} 11. h3 {[%emt 0:03:30]} a6
{[%emt 0:01:00]} 12. a4 {[%emt 0:00:30]} b6 {[%emt 0:00:30]} 13. e4 {[%emt 0:
10:30]} Rb8 {[%emt 0:03:30]} 14. Nc4 {[%emt 0:02:30]} Qc7 {[%emt 0:03:30]} 15.
Bf4 {[%emt 0:02:30]} Bf8 {[%emt 0:00:00]} 16. Qc2 {[%emt 0:10:30]} b5 {[%emt 0:
09:00]} 17. axb5 {[%emt 0:00:30]} axb5 {[%emt 0:00:30]} 18. Na5 {[%emt 0:03:30]
} b4 {[%emt 0:00:30]} 19. Ne2 {[%emt 0:02:30]} Ba6 {[%emt 0:03:30]} 20. Nc6 {
[%emt 0:07:30]} Bxe2 {[%emt 0:03:30]} 21. Qxe2 {[%emt 0:01:30]} Nxd5 {[%emt 0:
11:30]} 22. Nxb8 {[%emt 0:01:30]} Nxf4 {[%emt 0:00:30]} 23. gxf4 {[%emt 0:01:
30]} Nxb8 {[%emt 0:02:30]} 24. Qb5 {[%emt 0:04:30]} Nc6 {[%emt 0:03:30]} 25. e5
{[%emt 0:09:30]} Rc8 {[%emt 0:00:30]} 26. Qxc6 {[%emt 0:04:30]} Qxc6 {[%emt 0:
00:00]} 27. Bxc6 {[%emt 0:00:30]} Rxc6 {[%emt 0:00:00]} 28. Ra8 {[%emt 0:01:30]
} Kg7 {[%emt 0:06:30]} 29. Rfa1 {[%emt 0:05:30]} dxe5 {[%emt 0:05:30]} 30. fxe5
{[%emt 0:00:30]} c4 {[%emt 0:01:30]} 31. R8a6 {[%emt 0:04:07]} Rc5 {[%emt 0:03:
30]} 32. R6a5 {[%emt 0:07:13]} Rc6 {[%emt 0:02:30]} 33. Kf1 {[%emt 0:02:15]}
Bc5 {[%emt 0:06:30]} 34. Rb5 {[%emt 0:01:37]} c3 {[%emt 0:04:30]} 35. bxc3 {
[%emt 0:00:22]} bxc3 {[%emt 0:00:30]} 36. Rc1 {[%emt 0:01:01]} Ba3 {[%emt 0:01:
30]} 37. Rc2 {[%emt 0:00:17]} Bb2 {[%emt 0:01:30]} 38. Ke2 {[%emt 0:01:19]} Rc4
{[%emt 0:00:00]} 39. Rd5 {[%emt 0:03:34]} Re4+ {[%emt 0:02:00]} 40. Kf3 {[%emt
0:00:00]} Rh4 {[%emt 0:00:00]} 41. Kg3 {[%emt 0:02:45]} Re4 {[%emt 0:02:00]}
42. f4 {[%emt 0:07:30]} Re3+ {[%emt 0:04:30]} 43. Kg2 {[%emt 0:00:00]} h5 {
[%emt 0:00:30]} 44. h4 {[%emt 0:03:00]} Re4 {[%emt 0:00:30]} 45. Kf3 {[%emt 0:
00:30]} Re1 {[%emt 0:00:30]} 46. Rc5 {[%emt 0:01:30]} Rh1 {[%emt 0:03:30]} 47.
Kg3 {[%emt 0:01:30]} Rg1+ {[%emt 0:01:30]} 48. Rg2 {[%emt 0:01:30]} Rf1 {[%emt
0:01:30]} 49. Rf2 {[%emt 0:03:50]} Rg1+ {[%emt 0:00:00]} 50. Kh2 {[%emt 0:05:
20]} Rg4 {[%emt 0:04:00]} 51. f5 {[%emt 0:00:33]} Rxh4+ {[%emt 0:01:30]} 52.
Kg3 {[%emt 0:00:40]} Rg4+ {[%emt 0:00:30]} 53. Kh3 {[%emt 0:00:20]} gxf5 {
[%emt 0:12:30]} 54. Rxf5 {[%emt 0:00:07]} Kg6 {[%emt 0:01:30]} 55. Rf6+ {[%emt
0:00:50]} Kg7 {[%emt 0:02:30]} 56. Rc7 {[%emt 0:01:26]} c2 {[%emt 0:00:30]} 57.
Rfxf7+ {[%emt 0:01:59]} Kh6 {[%emt 0:00:00]} 58. Rc6+ {[%emt 0:07:16]} Kg5 {
[%emt 0:03:00]} 59. Rxc2 {[%emt 0:01:06]} Bxe5 {[%emt 0:00:30]} 60. Rg2 {[%emt
0:00:41]} Rxg2 {[%emt 0:00:30]} 1/2-1/2

[Event "Wch u20 girls"]
[Site "Kocaeli"]
[Date "2013.09.23"]
[Round "10.2"]
[White "Kashlinskaya, Alina"]
[Black "Arabidze, Meri"]
[Result "1/2-1/2"]
[ECO "A38"]
[WhiteElo "2434"]
[BlackElo "2379"]
[PlyCount "157"]
[EventDate "2013.09.??"]
[EventType "swiss"]
[EventRounds "13"]
[EventCountry "TUR"]
[Source "CBase R.Goldau"]
[SourceDate "2000.03.01"]
[TimeControl "40/5400+30:1800+30"]

1. Nf3 {[%emt 0:00:30]} c5 {[%emt 0:00:30]} 2. g3 {[%emt 0:00:00]} g6 {[%emt 0:
00:30]} 3. Bg2 {[%emt 0:00:00]} Bg7 {[%emt 0:00:30]} 4. O-O {[%emt 0:00:30]}
Nc6 {[%emt 0:00:30]} 5. c4 {[%emt 0:02:30]} d6 {[%emt 0:02:30]} 6. Nc3 {[%emt
0:00:30]} Nf6 {[%emt 0:00:30]} 7. d4 {[%emt 0:04:30]} cxd4 {[%emt 0:02:30]} 8.
Nxd4 {[%emt 0:00:00]} Bd7 {[%emt 0:03:30]} 9. Nc2 {[%emt 0:04:00]} O-O {[%emt
0:02:30]} 10. b3 {[%emt 0:01:30]} Qc8 {[%emt 0:06:30]} 11. Bd2 {[%emt 0:16:30]}
Bh3 {[%emt 0:02:30]} 12. Rc1 {[%emt 0:00:30]} h5 {[%emt 0:05:30]} 13. Nd5 {
[%emt 0:06:30]} Bxg2 {[%emt 0:09:30]} 14. Kxg2 {[%emt 0:00:30]} h4 {[%emt 0:00:
30]} 15. Bg5 {[%emt 0:07:30]} h3+ {[%emt 0:05:30]} 16. Kg1 {[%emt 0:01:30]} Qf5
{[%emt 0:01:30]} 17. Bxf6 {[%emt 0:00:30]} Bxf6 {[%emt 0:04:30]} 18. Nce3 {
[%emt 0:01:30]} Qg5 {[%emt 0:08:30]} 19. f4 {[%emt 0:02:30]} Qh5 {[%emt 0:03:
30]} 20. Nxf6+ {[%emt 0:00:30]} exf6 {[%emt 0:00:30]} 21. Nd5 {[%emt 0:00:30]}
Kg7 {[%emt 0:07:30]} 22. e4 {[%emt 0:11:30]} Qxd1 {[%emt 0:12:02]} 23. Rcxd1 {
[%emt 0:00:00]} a6 {[%emt 0:00:30]} 24. Rd2 {[%emt 0:05:00]} Rae8 {[%emt 0:06:
10]} 25. Nc3 {[%emt 0:00:30]} f5 {[%emt 0:01:02]} 26. exf5 {[%emt 0:00:30]}
gxf5 {[%emt 0:00:12]} 27. Kf2 {[%emt 0:04:30]} Re6 {[%emt 0:04:10]} 28. Rfd1 {
[%emt 0:05:30]} Rfe8 {[%emt 0:00:13]} 29. Rxd6 {[%emt 0:00:30]} Re3 {[%emt 0:
00:18]} 30. R6d3 {[%emt 0:00:30]} R3e6 {[%emt 0:00:28]} 31. R3d2 {[%emt 0:01:
30]} Ne7 {[%emt 0:03:11]} 32. Re2 {[%emt 0:04:22]} Rxe2+ {[%emt 0:01:34]} 33.
Nxe2 {[%emt 0:00:05]} Ng8 {[%emt 0:00:09]} 34. Nd4 {[%emt 0:08:49]} Nh6 {[%emt
0:00:36]} 35. Rd2 {[%emt 0:02:21]} Ng4+ {[%emt 0:02:20]} 36. Kf1 {[%emt 0:00:
05]} Kf6 {[%emt 0:00:12]} 37. Nf3 {[%emt 0:00:43]} Ne3+ {[%emt 0:01:34]} 38.
Kg1 {[%emt 0:00:05]} Ng4 {[%emt 0:00:14]} 39. Kf1 {[%emt 0:09:03]} Ne3+ {[%emt
0:00:49]} 40. Kg1 {[%emt 0:00:00]} Ng4 {[%emt 0:00:00]} 41. Rd6+ {[%emt 0:06:
27]} Kg7 {[%emt 0:06:16]} 42. Ne5 {[%emt 0:01:30]} Nxe5 {[%emt 0:08:30]} 43.
fxe5 {[%emt 0:00:00]} Rxe5 {[%emt 0:00:00]} 44. Kf2 {[%emt 0:00:00]} Re7 {
[%emt 0:04:29]} 45. a3 {[%emt 0:03:30]} Rc7 {[%emt 0:04:13]} 46. Rd4 {[%emt 0:
01:30]} b5 {[%emt 0:03:00]} 47. Ke3 {[%emt 0:02:47]} bxc4 {[%emt 0:02:01]} 48.
bxc4 {[%emt 0:00:13]} Rc5 {[%emt 0:01:01]} 49. Rh4 {[%emt 0:05:56]} Ra5 {[%emt
0:01:00]} 50. Kd4 {[%emt 0:03:00]} Rxa3 {[%emt 0:00:27]} 51. c5 {[%emt 0:00:48]
} Ra2 {[%emt 0:02:48]} 52. Rxh3 {[%emt 0:00:38]} a5 {[%emt 0:00:13]} 53. c6 {
[%emt 0:03:03]} Rc2 {[%emt 0:00:28]} 54. Kd5 {[%emt 0:00:08]} a4 {[%emt 0:00:
30]} 55. Rh4 {[%emt 0:01:25]} a3 {[%emt 0:00:07]} 56. Ra4 {[%emt 0:00:14]} a2 {
[%emt 0:00:39]} 57. h4 {[%emt 0:01:14]} Kg6 {[%emt 0:00:38]} 58. Kd6 {[%emt 0:
00:24]} Rd2+ {[%emt 0:01:16]} 59. Ke7 {[%emt 0:00:57]} Rc2 {[%emt 0:01:45]} 60.
Kd7 {[%emt 0:00:13]} Rd2+ {[%emt 0:00:36]} 61. Kc8 {[%emt 0:00:43]} Kh5 {[%emt
0:00:38]} 62. c7 {[%emt 0:00:32]} f4 {[%emt 0:03:13]} 63. gxf4 {[%emt 0:00:57]}
Kxh4 {[%emt 0:00:45]} 64. Kb7 {[%emt 0:02:34]} Rb2+ {[%emt 0:00:02]} 65. Kc6 {
[%emt 0:00:11]} Rc2+ {[%emt 0:00:36]} 66. Kd6 {[%emt 0:00:23]} Rd2+ {[%emt 0:
00:25]} 67. Ke5 {[%emt 0:00:36]} Rc2 {[%emt 0:00:43]} 68. Rxa2 {[%emt 0:01:38]}
Rxc7 {[%emt 0:00:04]} 69. Rg2 {[%emt 0:01:09]} Kh5 {[%emt 0:01:43]} 70. Kf6 {
[%emt 0:00:23]} Rb7 {[%emt 0:00:56]} 71. f5 {[%emt 0:00:40]} Ra7 {[%emt 0:00:
17]} 72. Kg7 {[%emt 0:02:41]} f6+ {[%emt 0:00:37]} 73. Kxf6 {[%emt 0:00:05]}
Ra6+ {[%emt 0:00:08]} 74. Kg7 {[%emt 0:00:17]} Ra7+ {[%emt 0:00:21]} 75. Kg8 {
[%emt 0:00:08]} Ra8+ {[%emt 0:00:30]} 76. Kh7 {[%emt 0:00:08]} Rf8 {[%emt 0:00:
31]} 77. Rf2 {[%emt 0:00:53]} Kg5 {[%emt 0:00:10]} 78. Rg2+ {[%emt 0:00:03]}
Kh5 {[%emt 0:00:34]} 79. Rf2 {[%emt 0:00:43]} 1/2-1/2

[Event "Wch u20 girls"]
[Site "Kocaeli"]
[Date "2013.09.23"]
[Round "10.3"]
[White "Padmini, Rout"]
[Black "Cori T, Deysi"]
[Result "0-1"]
[ECO "B49"]
[WhiteElo "2312"]
[BlackElo "2433"]
[PlyCount "60"]
[EventDate "2013.09.??"]
[EventType "swiss"]
[EventRounds "13"]
[EventCountry "TUR"]
[Source "CBase R.Goldau"]
[SourceDate "2000.03.01"]
[TimeControl "40/5400+30:1800+30"]

1. e4 {[%emt 0:00:30]} c5 {[%emt 0:00:30]} 2. Nf3 {[%emt 0:00:00]} Nc6 {[%emt
0:00:30]} 3. d4 {[%emt 0:00:00]} cxd4 {[%emt 0:00:00]} 4. Nxd4 {[%emt 0:00:30]}
e6 {[%emt 0:00:00]} 5. Nc3 {[%emt 0:00:00]} Qc7 {[%emt 0:00:30]} 6. Be2 {[%emt
0:00:00]} a6 {[%emt 0:01:30]} 7. O-O {[%emt 0:00:30]} Nf6 {[%emt 0:00:30]} 8.
Be3 {[%emt 0:00:30]} Bb4 {[%emt 0:00:30]} 9. Na4 {[%emt 0:00:30]} Be7 {[%emt 0:
00:30]} 10. c4 {[%emt 0:02:30]} O-O {[%emt 0:02:30]} 11. c5 {[%emt 0:05:30]}
Nxe4 {[%emt 0:02:30]} 12. Rc1 {[%emt 0:05:30]} f5 {[%emt 0:01:30]} 13. g3 {
[%emt 0:04:30]} Bg5 {[%emt 0:07:30]} 14. Bxg5 {[%emt 0:08:30]} Nxg5 {[%emt 0:
00:30]} 15. f4 {[%emt 0:00:30]} Nf7 {[%emt 0:01:30]} 16. Bf3 {[%emt 0:09:30]}
Rb8 {[%emt 0:00:30]} 17. a3 {[%emt 0:07:30]} Rd8 {[%emt 0:01:30]} 18. b4 {
[%emt 0:11:30]} d5 {[%emt 0:05:30]} 19. Nb6 {[%emt 0:01:30]} e5 {[%emt 0:22:30]
} 20. fxe5 {[%emt 0:04:30]} Qxe5 {[%emt 0:00:30]} 21. Nc2 {[%emt 0:01:30]} Be6
{[%emt 0:01:30]} 22. Re1 {[%emt 0:09:30]} Qf6 {[%emt 0:00:00]} 23. Bxd5 {[%emt
0:00:30]} Nfe5 {[%emt 0:06:00]} 24. Bxe6+ {[%emt 0:02:30]} Qxe6 {[%emt 0:00:30]
} 25. Qe2 {[%emt 0:01:30]} f4 {[%emt 0:14:30]} 26. Rf1 {[%emt 0:06:19]} f3 {
[%emt 0:01:30]} 27. Qe3 {[%emt 0:05:56]} Rd3 {[%emt 0:04:30]} 28. Qe1 {[%emt 0:
00:50]} Rbd8 {[%emt 0:01:30]} 29. Rf2 {[%emt 0:01:04]} Qh6 {[%emt 0:00:00]} 30.
Rb1 {[%emt 0:01:38]} Ng4 {[%emt 0:00:00]} 0-1

[Event "Wch u20 girls"]
[Site "Kocaeli"]
[Date "2013.09.23"]
[Round "10.4"]
[White "Rodriguez Rueda, Paula Andrea"]
[Black "Saduakassova, Dinara"]
[Result "1/2-1/2"]
[ECO "D38"]
[WhiteElo "2225"]
[BlackElo "2326"]
[PlyCount "68"]
[EventDate "2013.09.??"]
[EventType "swiss"]
[EventRounds "13"]
[EventCountry "TUR"]
[Source "CBase R.Goldau"]
[SourceDate "2000.03.01"]
[TimeControl "40/5400+30:1800+30"]

1. d4 {[%emt 0:00:30]} Nf6 {[%emt 0:00:30]} 2. c4 {[%emt 0:00:00]} e6 {[%emt 0:
00:00]} 3. Nf3 {[%emt 0:00:00]} d5 {[%emt 0:00:00]} 4. Nc3 {[%emt 0:00:00]} Bb4
{[%emt 0:00:00]} 5. Qa4+ {[%emt 0:00:00]} Nc6 {[%emt 0:00:00]} 6. e3 {[%emt 0:
00:30]} O-O {[%emt 0:02:30]} 7. Bd3 {[%emt 0:00:30]} a6 {[%emt 0:12:30]} 8. O-O
{[%emt 0:04:30]} Qe7 {[%emt 0:08:30]} 9. Qc2 {[%emt 0:02:30]} dxc4 {[%emt 0:01:
30]} 10. Bxc4 {[%emt 0:00:30]} e5 {[%emt 0:02:30]} 11. Nd5 {[%emt 0:02:30]}
Nxd5 {[%emt 0:07:30]} 12. Bxd5 {[%emt 0:00:30]} exd4 {[%emt 0:06:30]} 13. exd4
{[%emt 0:10:30]} h6 {[%emt 0:10:30]} 14. Bxc6 {[%emt 0:03:30]} bxc6 {[%emt 0:
00:30]} 15. Ne5 {[%emt 0:06:30]} Bd6 {[%emt 0:01:30]} 16. Qxc6 {[%emt 0:07:30]}
Rb8 {[%emt 0:05:30]} 17. Qc3 {[%emt 0:00:00]} Qf6 {[%emt 0:05:30]} 18. b3 {
[%emt 0:09:00]} Rb5 {[%emt 0:07:30]} 19. Bb2 {[%emt 0:05:30]} Bb7 {[%emt 0:03:
30]} 20. f4 {[%emt 0:09:30]} Qf5 {[%emt 0:02:30]} 21. a4 {[%emt 0:02:30]} Rb6 {
[%emt 0:02:03]} 22. Rf2 {[%emt 0:14:30]} Re8 {[%emt 0:04:27]} 23. Rd1 {[%emt 0:
04:04]} Bd5 {[%emt 0:01:55]} 24. Nc4 {[%emt 0:02:43]} Bb4 {[%emt 0:00:13]} 25.
Qc2 {[%emt 0:01:51]} Qxc2 {[%emt 0:02:49]} 26. Rxc2 {[%emt 0:00:02]} Rbe6 {
[%emt 0:00:22]} 27. Kf2 {[%emt 0:02:44]} Bd6 {[%emt 0:01:40]} 28. Bc1 {[%emt 0:
02:09]} Rb8 {[%emt 0:03:14]} 29. Rc3 {[%emt 0:00:52]} Be7 {[%emt 0:01:12]} 30.
Be3 {[%emt 0:01:51]} Bb4 {[%emt 0:00:58]} 31. Rcc1 {[%emt 0:01:23]} Bf8 {[%emt
0:00:42]} 32. Rc3 {[%emt 0:01:16]} Bb4 {[%emt 0:00:04]} 33. Rcc1 {[%emt 0:00:
09]} Bf8 {[%emt 0:01:43]} 34. Rc3 {[%emt 0:00:28]} Bb4 {[%emt 0:00:12]} 1/2-1/2

[Event "Wch u20 girls"]
[Site "Kocaeli"]
[Date "2013.09.23"]
[Round "10.5"]
[White "Stetsko, Lanita"]
[Black "Medina, Warda Aulia"]
[Result "0-1"]
[ECO "C02"]
[WhiteElo "2213"]
[BlackElo "2301"]
[PlyCount "46"]
[EventDate "2013.09.??"]
[EventType "swiss"]
[EventRounds "13"]
[EventCountry "TUR"]
[Source "CBase R.Goldau"]
[SourceDate "2000.03.01"]
[TimeControl "40/5400+30:1800+30"]

1. e4 {[%emt 0:00:30]} e6 {[%emt 0:00:30]} 2. d4 {[%emt 0:00:00]} d5 {[%emt 0:
00:00]} 3. e5 {[%emt 0:00:00]} c5 {[%emt 0:00:00]} 4. c3 {[%emt 0:00:30]} Nc6 {
[%emt 0:00:00]} 5. Nf3 {[%emt 0:00:00]} Bd7 {[%emt 0:00:00]} 6. a3 {[%emt 0:00:
00]} f6 {[%emt 0:00:30]} 7. Bd3 {[%emt 0:00:30]} Qc7 {[%emt 0:00:30]} 8. Qe2 {
[%emt 0:01:30]} cxd4 {[%emt 0:01:30]} 9. cxd4 {[%emt 0:05:30]} Nxd4 {[%emt 0:
05:30]} 10. Qd1 {[%emt 0:19:30]} Nxf3+ {[%emt 0:01:30]} 11. gxf3 {[%emt 0:00:
30]} Qxe5+ {[%emt 0:04:30]} 12. Kf1 {[%emt 0:02:30]} Qh5 {[%emt 0:04:30]} 13.
Nc3 {[%emt 0:04:30]} a6 {[%emt 0:05:30]} 14. Bf4 {[%emt 0:08:30]} Ne7 {[%emt 0:
01:30]} 15. Na4 {[%emt 0:08:30]} Nc8 {[%emt 0:01:30]} 16. Rg1 {[%emt 0:03:30]}
e5 {[%emt 0:01:30]} 17. Bd2 {[%emt 0:02:30]} e4 {[%emt 0:14:30]} 18. Qe2 {
[%emt 0:05:30]} Qxh2 {[%emt 0:02:30]} 19. Qe3 {[%emt 0:02:30]} Qh3+ {[%emt 0:
07:30]} 20. Ke1 {[%emt 0:00:30]} Bxa4 {[%emt 0:01:30]} 21. Bxe4 {[%emt 0:01:30]
} Qe6 {[%emt 0:09:30]} 22. Rg4 {[%emt 0:13:26]} Bc6 {[%emt 0:01:30]} 23. Rc1 {
[%emt 0:00:30]} Kf7 {[%emt 0:01:30]} 0-1